bitfinex/quotes_SOLUSD_20250525
["timestamp","ask_amount","ask_price","bid_price","bid_amount"]
[1748199678259,18.64964886,171.61,171.57,16.27539237]
[1748199678461,18.64964886,171.61,171.58,16.27539237]
[1748199680559,18.64964886,171.61,171.57,16.27539237]
[1748199687295,18.64964886,171.61,171.51,43.7342]
[1748199687296,18.64964886,171.57,171.53,16.27539237]
[1748199687790,34.92504123,171.57,171.52,16.27539237]
[1748199687996,34.92504123,171.57,171.51,16.27539237]
[1748199688294,16.27539237,171.55,171.49,16.27539237]
[1748199688497,18.64964886,171.53,171.49,42.27539237]
[1748199689393,18.64964886,171.54,171.49,16.27539237]
[1748199689784,18.64964886,171.54,171.49,42.27539237]
[1748199690103,18.64964886,171.54,171.5,16.27539237]
[1748199690901,18.64964886,171.55,171.53,16.27539237]
[1748199691091,53.58964886,171.59,171.54,16.27539237]
[1748199691508,18.64964886,171.59,171.54,16.27539237]
[1748199691705,53.58964886,171.59,171.54,16.27539237]
[1748199694499,53.58964886,171.59,171.49,13.94851691]
[1748199694500,53.58964886,171.59,171.55,16.27539237]
[1748199696285,53.58964886,171.59,171.49,8.1174]
[1748199696492,53.58964886,171.59,171.55,16.27539237]
[1748199698616,53.58964886,171.59,171.56,16.27539237]
[1748199698807,18.64964886,171.59,171.57,16.27539237]
[1748199699712,18.64964886,171.59,171.56,16.27539237]
[1748199702397,18.64964886,171.59,171.57,16.27539237]
[1748199702719,18.64964886,171.59,171.58,16.27539237]
[1748199706237,18.64964886,171.62,171.58,16.27539237]
[1748199706438,34.92504123,171.62,171.57,16.27539237]
[1748199710341,18.64964886,171.62,171.57,16.27539237]
[1748199715154,34.92504123,171.62,171.57,16.27539237]
[1748199717846,34.92504123,171.62,171.56,16.27539237]
[1748199719342,34.92504123,171.62,171.55,26.0]
[1748199719527,34.92504123,171.62,171.56,16.27539237]
[1748199721131,18.64964886,171.6,171.55,16.27539237]
[1748199721337,18.64964886,171.6,171.55,42.27539237]
[1748199724046,18.64964886,171.61,171.56,16.27539237]
[1748199725452,18.64964886,171.61,171.55,26.0]
[1748199725640,18.64964886,171.61,171.56,16.27539237]
[1748199726029,18.64964886,171.61,171.55,26.0]
[1748199726248,18.64964886,171.61,171.56,16.27539237]
[1748199727850,70.76,171.63,171.56,16.27539237]
[1748199728031,53.58964886,171.62,171.57,16.27539237]
[1748199728232,53.58964886,171.62,171.58,16.27539237]
[1748199728752,18.64964886,171.62,171.59,16.27539237]
[1748199728943,18.64964886,171.65,171.61,16.27539237]
[1748199729151,18.64964886,171.65,171.58,26.0]
[1748199729152,18.64964886,171.65,171.63,16.27539237]
[1748199729456,4.18211995,171.66,171.64,16.27539237]
[1748199730141,72.4154,171.69,171.64,16.27539237]
[1748199730340,18.64964886,171.68,171.64,16.27539237]
[1748199735944,18.64964886,171.68,171.65,16.27539237]
[1748199739872,35.82,171.69,171.66,16.27539237]
[1748199740042,53.68379237,171.74,171.68,16.27539237]
[1748199740232,18.64964886,171.72,171.69,16.27539237]
[1748199742356,18.64964886,171.73,171.71,16.27539237]
[1748199744940,18.64964886,171.73,171.7,16.27539237]
[1748199755053,18.64964886,171.73,171.71,16.27539237]
[1748199755247,35.86,171.74,171.71,16.27539237]
[1748199755457,18.64964886,171.77,171.72,16.27539237]
[1748199755776,18.64964886,171.77,171.73,16.27539237]
[1748199756749,18.64964886,171.77,171.72,16.27539237]
[1748199757252,16.27539237,171.75,171.69,26.0]
[1748199757457,18.64964886,171.73,171.69,42.27539237]
[1748199757857,16.27539237,171.75,171.69,42.27539237]
[1748199758062,18.64964886,171.75,171.7,16.27539237]
[1748199758265,18.64964886,171.77,171.7,16.27539237]
[1748199758469,18.64964886,171.76,171.71,16.27539237]
[1748199760977,18.64964886,171.76,171.72,16.27539237]
[1748199761570,18.64964886,171.76,171.69,26.0]
[1748199761571,18.64964886,171.76,171.74,16.27539237]
[1748199762080,18.64964886,171.76,171.73,16.27539237]
[1748199765282,18.64964886,171.76,171.74,16.27539237]
[1748199770591,18.64964886,171.76,171.7,26.0]
[1748199770592,18.64964886,171.76,171.73,16.27539237]
[1748199770784,18.64964886,171.76,171.7,26.0]
[1748199770785,18.64964886,171.77,171.72,42.27539237]
[1748199771084,34.92504123,171.77,171.72,42.27539237]
[1748199775169,18.64964886,171.77,171.72,42.27539237]
[1748199779003,18.64964886,171.77,171.73,16.27539237]
[1748199784603,18.64964886,171.77,171.72,42.27539237]
[1748199792108,18.64964886,171.77,171.72,26.0]
[1748199792307,18.64964886,171.77,171.72,42.27539237]
[1748199796297,18.64964886,171.77,171.73,16.27539237]
[1748199796612,18.64964886,171.78,171.73,16.27539237]
[1748199797391,34.92504123,171.78,171.72,42.27539237]
[1748199800315,34.92504123,171.78,171.72,26.0]
[1748199800505,34.92504123,171.78,171.72,42.27539237]
[1748199802594,69.82504123,171.78,171.72,42.27539237]
[1748199808224,69.82504123,171.78,171.72,26.0]
[1748199808404,69.82504123,171.78,171.72,42.27539237]
[1748199809799,53.54964886,171.78,171.72,42.27539237]
[1748199811120,53.54964886,171.78,171.73,16.27539237]
[1748199811318,16.27539237,171.79,171.74,16.27539237]
[1748199811319,18.64964886,171.79,171.74,16.27539237]
[1748199811526,18.64964886,171.78,171.74,16.27539237]
[1748199812728,18.64964886,171.78,171.75,16.27539237]
[1748199814628,18.64964886,171.78,171.74,16.27539237]
[1748199829715,16.27539237,171.8,171.74,16.27539237]
[1748199829918,18.64964886,171.79,171.76,16.27539237]
[1748199830539,34.92504123,171.79,171.74,42.27539237]
[1748199835044,1.5274,171.82,171.76,16.27539237]
[1748199835248,34.92504123,171.81,171.75,16.27539237]
[1748199835456,18.64964886,171.79,171.75,16.27539237]
[1748199838551,18.64964886,171.79,171.74,42.27539237]
[1748199838850,34.92504123,171.79,171.76,26.0]
[1748199839237,18.64964886,171.79,171.76,26.0]
[1748199839849,18.64964886,171.79,171.75,16.27539237]
[1748199841566,18.64964886,171.79,171.74,42.27539237]
[1748199842163,34.92504123,171.79,171.76,26.0]
[1748199845270,34.92504123,171.79,171.73,16.27539237]
[1748199845646,34.92504123,171.79,171.76,26.0]
[1748199848967,18.64964886,171.78,171.76,26.0]
[1748199853165,18.64964886,171.78,171.74,26.0]
[1748199853368,18.64964886,171.78,171.76,26.0]
[1748199853675,18.64964886,171.79,171.76,26.0]
[1748199870997,18.64964886,171.79,171.75,16.27539237]
[1748199871298,18.64964886,171.79,171.75,42.27539237]
[1748199885922,51.17539237,171.81,171.75,42.27539237]
[1748199886210,18.64964886,171.83,171.8,16.27539237]
[1748199887317,53.54964886,171.85,171.8,16.27539237]
[1748199887494,34.92504123,171.85,171.8,16.27539237]
[1748199891025,18.64964886,171.83,171.8,16.27539237]
[1748199893630,17.91789237,171.86,171.81,16.27539237]
[1748199893836,18.64964886,171.85,171.81,16.27539237]
[1748199894936,18.64964886,171.85,171.81,13.27539237]
[1748199900622,18.64964886,171.85,171.8,16.27539237]
[1748199904241,18.64964886,171.81,171.77,16.27539237]
[1748199904634,16.27539237,171.81,171.76,42.27539237]
[1748199904961,34.92504123,171.78,171.71,7.7192]
[1748199905263,16.27539237,171.77,171.71,7.7192]
[1748199905430,16.27539237,171.77,171.72,16.27539237]
[1748199905630,16.27539237,171.77,171.75,26.0]
[1748199905849,16.27539237,171.78,171.76,26.0]
[1748199906051,18.64964886,171.79,171.76,26.0]
[1748199906227,18.64964886,171.79,171.75,16.27539237]
[1748199910435,52.82129237,171.81,171.75,16.27539237]
[1748199910635,18.64964886,171.8,171.76,16.27539237]
[1748199913453,18.64964886,171.8,171.75,16.27539237]
[1748199929148,16.27539237,171.81,171.76,16.27539237]
[1748199929365,18.64964886,171.81,171.77,16.27539237]
[1748199929979,34.92504123,171.81,171.76,16.27539237]
[1748199931650,34.92504123,171.81,171.71,49.32293448]
[1748199931651,34.92504123,171.81,171.74,26.0]
[1748199931852,34.92504123,171.81,171.76,16.27539237]
[1748199937979,18.64964886,171.81,171.77,16.27539237]
[1748199938177,18.64964886,171.82,171.78,16.27539237]
[1748199938481,16.27539237,171.83,171.78,16.27539237]
[1748199939276,34.92504123,171.84,171.79,16.27539237]
[1748199941876,34.92504123,171.84,171.78,26.0]
[1748199941877,18.64964886,171.84,171.8,16.27539237]
[1748199943062,1.5777,171.89,171.83,16.27539237]
[1748199943272,18.64964886,171.88,171.84,16.27539237]
[1748199944183,18.64964886,171.88,171.82,26.0]
[1748199944379,18.64964886,171.88,171.84,16.27539237]
[1748199944571,18.64964886,171.88,171.83,16.27539237]
[1748199945096,34.92504123,171.88,171.83,16.27539237]
[1748199945892,18.64964886,171.86,171.81,26.0]
[1748199946081,16.27539237,171.86,171.81,42.27539237]
[1748199951376,16.27539237,171.87,171.81,42.27539237]
[1748199952199,18.64964886,171.86,171.81,42.27539237]
[1748199953992,18.64964886,171.86,171.82,16.27539237]
[1748199955392,18.64964886,171.86,171.81,26.0]
[1748199955575,18.64964886,171.86,171.82,16.27539237]
[1748199957479,18.64964886,171.86,171.81,42.27539237]
[1748199959797,1.5777,171.89,171.82,16.27539237]
[1748199959798,18.64964886,171.88,171.82,16.27539237]
[1748199960098,18.64964886,171.86,171.81,26.0]
[1748199960302,34.92504123,171.86,171.81,42.27539237]
[1748199960796,18.64964886,171.88,171.81,42.27539237]
[1748199960996,16.27539237,171.86,171.81,42.27539237]
[1748199964082,16.27539237,171.86,171.83,26.0]
[1748199965311,16.27539237,171.86,171.81,42.27539237]
[1748199968617,18.64964886,171.88,171.81,42.27539237]
[1748199968908,16.27539237,171.87,171.81,42.27539237]
[1748199974907,18.64964886,171.85,171.83,26.0]
[1748199979802,16.27539237,171.87,171.81,42.27539237]
[1748199979996,18.64964886,171.86,171.81,42.27539237]
[1748199982519,34.92504123,171.88,171.82,16.27539237]
[1748199983621,1.5777,171.89,171.83,16.27539237]
[1748199983808,1.5777,171.89,171.81,26.0]
[1748199983809,18.64964886,171.89,171.84,16.27539237]
[1748199984412,35.76,171.9,171.85,16.27539237]
[1748199984607,52.03539237,171.9,171.85,16.27539237]
[1748199984801,52.03539237,171.9,171.84,42.27539237]
[1748199986609,16.27539237,171.88,171.84,26.0]
[1748199987629,18.64964886,171.89,171.84,42.27539237]
[1748199987843,34.92504123,171.89,171.84,42.27539237]
[1748199990338,34.92504123,171.89,171.84,26.0]
[1748199990709,16.27539237,171.88,171.84,26.0]
[1748199992222,18.64964886,171.87,171.84,26.0]
[1748199992424,16.27539237,171.86,171.8,35.74]
[1748199992607,16.27539237,171.86,171.83,26.0]
[1748199994616,16.27539237,171.85,171.83,26.0]
[1748199994929,16.27539237,171.84,171.83,26.0]
[1748199995317,16.27539237,171.86,171.83,26.0]
[1748199998235,52.73179237,171.88,171.83,26.0]
[1748199998827,16.27539237,171.87,171.83,26.0]
[1748200007618,17.85179237,171.88,171.83,26.0]
[1748200008647,69.80504123,171.89,171.84,16.27539237]
[1748200008943,69.80504123,171.89,171.83,42.27539237]
[1748200009146,34.92504123,171.89,171.83,42.27539237]
[1748200011733,34.92504123,171.89,171.84,16.27539237]
[1748200011913,18.64964886,171.89,171.84,16.27539237]
[1748200013334,34.92504123,171.89,171.84,16.27539237]
[1748200013543,34.92504123,171.89,171.83,42.27539237]
[1748200016030,34.92504123,171.89,171.84,16.27539237]
[1748200017137,34.92504123,171.89,171.83,42.27539237]
[1748200017340,16.27539237,171.88,171.83,26.0]
[1748200021651,34.92504123,171.89,171.83,42.27539237]
[1748200025238,34.92504123,171.87,171.84,26.0]
[1748200028348,18.64964886,171.86,171.84,26.0]
[1748200028535,34.92504123,171.86,171.84,26.0]
[1748200029559,34.92504123,171.86,171.8,16.27539237]
[1748200029752,34.92504123,171.86,171.83,26.0]
[1748200030637,16.27539237,171.87,171.83,26.0]
[1748200030939,18.64964886,171.87,171.83,26.0]
[1748200034561,17.84529237,171.88,171.83,26.0]
[1748200037162,16.27539237,171.87,171.79,35.82]
[1748200037366,18.64964886,171.85,171.83,26.0]
[1748200038587,16.27539237,171.84,171.79,35.82]
[1748200038750,16.27539237,171.83,171.78,16.27539237]
[1748200039059,16.27539237,171.83,171.78,42.27539237]
[1748200040969,51.15539237,171.85,171.8,16.27539237]
[1748200041163,34.88,171.85,171.81,16.27539237]
[1748200041465,34.92504123,171.86,171.81,16.27539237]
[1748200042066,1.5699,171.88,171.82,16.27539237]
[1748200042270,18.64964886,171.87,171.81,26.0]
[1748200042472,18.64964886,171.87,171.83,16.27539237]
[1748200042654,34.92504123,171.87,171.82,16.27539237]
[1748200045977,34.92504123,171.87,171.81,42.27539237]
[1748200046567,34.92504123,171.87,171.82,16.27539237]
[1748200050793,16.27539237,171.86,171.81,26.0]
[1748200050967,16.27539237,171.84,171.78,35.84]
[1748200051173,16.27539237,171.83,171.78,52.11539237]
[1748200051572,16.27539237,171.83,171.79,26.0]
[1748200056067,16.27539237,171.84,171.79,16.27539237]
[1748200056688,19.61643628,171.87,171.82,16.27539237]
[1748200056990,16.27539237,171.87,171.82,16.27539237]
[1748200064302,18.64964886,171.87,171.82,16.27539237]
[1748200064667,34.92504123,171.87,171.82,16.27539237]
[1748200066793,18.64964886,171.89,171.83,16.27539237]
[1748200066977,16.27539237,171.88,171.83,16.27539237]
[1748200068087,18.64964886,171.89,171.83,16.27539237]
[1748200068273,16.27539237,171.88,171.83,16.27539237]
[1748200075302,16.27539237,171.88,171.81,26.0]
[1748200075603,16.27539237,171.88,171.82,16.27539237]
[1748200078607,16.27539237,171.87,171.82,16.27539237]
[1748200080708,16.27539237,171.86,171.81,42.27539237]
[1748200081192,16.27539237,171.86,171.81,26.0]
[1748200083008,16.27539237,171.86,171.81,42.27539237]
[1748200087622,16.27539237,171.86,171.81,26.0]
[1748200088318,16.27539237,171.85,171.81,26.0]
[1748200097113,16.27539237,171.85,171.8,22.80659237]
[1748200099044,16.27539237,171.84,171.76,6.5604]
[1748200099217,16.27539237,171.81,171.76,58.75579237]
[1748200099418,16.27539237,171.81,171.76,52.19539237]
[1748200099616,16.27539237,171.81,171.79,26.0]
[1748200103749,16.27539237,171.82,171.79,26.0]
[1748200103958,16.27539237,171.83,171.79,26.0]
[1748200104551,16.27539237,171.84,171.79,42.27539237]
[1748200109536,16.27539237,171.83,171.79,26.0]
[1748200110339,16.27539237,171.84,171.79,26.0]
[1748200111558,16.27539237,171.84,171.79,42.27539237]
[1748200115154,16.27539237,171.85,171.79,42.27539237]
[1748200116853,16.27539237,171.85,171.79,26.0]
[1748200117056,16.27539237,171.85,171.79,42.27539237]
[1748200127876,34.92504123,171.86,171.79,42.27539237]
[1748200136903,34.92504123,171.86,171.8,16.27539237]
[1748200139497,34.92504123,171.86,171.79,42.27539237]
[1748200139997,16.27539237,171.87,171.81,16.27539237]
[1748200145802,16.27539237,171.85,171.79,42.27539237]
[1748200146010,16.27539237,171.84,171.81,26.0]
[1748200146407,16.27539237,171.83,171.81,26.0]
[1748200148513,1.5166,171.88,171.8,16.27539237]
[1748200148514,18.64964886,171.85,171.8,16.27539237]
[1748200149713,18.64964886,171.85,171.81,16.27539237]
[1748200150401,18.64964886,171.85,171.8,16.27539237]
[1748200155814,18.64964886,171.85,171.79,26.0]
[1748200156019,34.92504123,171.85,171.79,42.27539237]
[1748200156913,18.64964886,171.85,171.8,16.27539237]
[1748200160109,18.64964886,171.85,171.79,42.27539237]
[1748200172538,18.64964886,171.85,171.79,261.57539237]
[1748200185723,18.64964886,171.9,171.86,81.5]
[1748200185921,4.18211995,171.91,171.87,16.27539237]
[1748200186420,4.18211995,171.91,171.87,154.07539237]
[1748200187139,34.92504123,171.92,171.87,154.07539237]
[1748200187350,18.64964886,171.92,171.87,154.07539237]
[1748200190247,18.64964886,171.92,171.87,235.57539237]
[1748200192244,35.78,171.94,171.89,16.27539237]
[1748200192430,34.92504123,171.92,171.89,219.3]
[1748200195542,16.27539237,171.93,171.89,219.3]
[1748200195741,18.64964886,171.92,171.89,219.3]
[1748200200752,16.27539237,171.9,171.89,219.3]
[1748200200932,18.64964886,171.91,171.9,65.22460763]
[1748200201143,34.92504123,171.91,171.9,65.22460763]
[1748200210562,18.64964886,171.91,171.9,65.22460763]
[1748200211638,53.52964886,171.91,171.9,65.22460763]
[1748200213367,16.27539237,171.93,171.9,65.22460763]
[1748200213667,34.88,171.92,171.9,65.22460763]
[1748200213849,51.15539237,171.93,171.9,65.22460763]
[1748200214249,16.27539237,171.93,171.9,65.22460763]
[1748200214443,51.15539237,171.93,171.9,65.22460763]
[1748200216760,51.15539237,171.93,171.9,203.02460763]
[1748200218161,34.92504123,171.92,171.9,203.02460763]
[1748200222688,34.92504123,171.92,171.9,65.22460763]
[1748200224487,34.88,171.91,171.9,65.22460763]
[1748200226393,69.80504123,171.92,171.9,65.22460763]
[1748200230396,53.52964886,171.92,171.9,65.22460763]
[1748200233503,34.88,171.92,171.9,65.22460763]
[1748200233801,34.88,171.93,171.9,65.22460763]
[1748200234511,34.88,171.93,171.9,203.02460763]
[1748200235406,34.92504123,171.94,171.9,203.02460763]
[1748200235608,34.88,171.93,171.9,203.02460763]
[1748200239091,69.80504123,171.94,171.9,203.02460763]
[1748200240307,66.08428152,171.98,171.9,203.02460763]
[1748200240308,18.64964886,171.97,171.9,203.02460763]
[1748200240612,16.27539237,171.95,171.9,203.02460763]
[1748200241013,51.15539237,171.95,171.9,203.02460763]
[1748200243016,16.27539237,171.95,171.9,203.02460763]
[1748200244514,19.61706788,171.95,171.9,203.02460763]
[1748200245914,16.27539237,171.95,171.9,203.02460763]
[1748200251519,16.27539237,171.95,171.9,219.3]
[1748200252408,34.92504123,171.94,171.9,203.02460763]
[1748200252608,16.27539237,171.93,171.9,203.02460763]
[1748200253004,34.92504123,171.91,171.9,203.02460763]
[1748200253221,34.92504123,171.91,171.9,65.22460763]
[1748200254304,0.14216157,171.89,171.82,203.02460763]
[1748200254525,16.27539237,171.83,171.82,65.22460763]
[1748200254814,34.92504123,171.83,171.82,65.22460763]
[1748200255320,18.64964886,171.83,171.82,65.22460763]
[1748200255720,34.88,171.84,171.82,65.22460763]
[1748200255923,70.64,171.86,171.83,16.27539237]
[1748200256316,70.64,171.86,171.84,16.27539237]
[1748200256500,35.76,171.86,171.83,219.3]
[1748200257427,35.76,171.86,171.83,203.02460763]
[1748200258120,18.64964886,171.85,171.83,203.02460763]
[1748200259020,34.92504123,171.85,171.83,203.02460763]
[1748200259222,34.92504123,171.85,171.81,65.22460763]
[1748200259413,18.64964886,171.85,171.81,81.5]
[1748200259922,18.64964886,171.85,171.81,90.60510666]
[1748200260325,96.02049903,171.86,171.82,25.38049903]
[1748200260326,70.64,171.86,171.82,25.38049903]
[1748200260530,18.64964886,171.87,171.83,25.38049903]
[1748200260827,18.64964886,171.87,171.83,228.40510666]
[1748200261304,18.64964886,171.87,171.84,25.38049903]
[1748200261829,18.64964886,171.87,171.83,203.02460763]
[1748200262129,44.03014789,171.87,171.83,203.02460763]
[1748200262623,18.64964886,171.85,171.83,203.02460763]
[1748200263933,44.03014789,171.85,171.83,65.22460763]
[1748200264525,78.91014789,171.84,171.83,65.22460763]
[1748200275844,53.52964886,171.84,171.83,65.22460763]
[1748200277637,78.91014789,171.84,171.83,65.22460763]
[1748200277843,18.64964886,171.84,171.83,65.22460763]
[1748200278136,34.9,171.87,171.83,65.22460763]
[1748200278326,18.64964886,171.86,171.83,65.22460763]
[1748200280641,18.64964886,171.86,171.83,203.02460763]
[1748200290245,35.96,171.9,171.83,203.02460763]
[1748200290443,18.64964886,171.88,171.83,228.40510666]
[1748200290747,53.54964886,171.88,171.83,228.40510666]
[1748200291348,78.93014789,171.88,171.83,228.40510666]
[1748200291948,78.93014789,171.88,171.83,203.02460763]
[1748200295951,16.24008116,171.87,171.83,203.02460763]
[1748200296161,18.64964886,171.86,171.83,203.02460763]
[1748200308559,18.64964886,171.86,171.83,219.26468879]
[1748200309258,37.71276157,171.9,171.83,219.26468879]
[1748200309465,18.64964886,171.88,171.83,219.26468879]
[1748200310273,2.17477241,171.87,171.83,219.26468879]
[1748200311081,18.64964886,171.88,171.83,219.26468879]
[1748200311474,38.23035095,171.88,171.83,219.26468879]
[1748200311680,16.24008116,171.87,171.83,203.02460763]
[1748200320579,34.88973002,171.88,171.83,203.02460763]
[1748200320770,2.17749539,171.87,171.83,203.02460763]
[1748200321673,2.17749539,171.86,171.83,203.02460763]
[1748200322764,16.24008116,171.87,171.83,203.02460763]
[1748200323592,34.88973002,171.88,171.83,203.02460763]
[1748200324187,2.17824577,171.87,171.83,203.02460763]
[1748200324381,2.17824577,171.87,171.84,16.24008116]
[1748200324971,18.64964886,171.88,171.83,219.26468879]
[1748200325588,34.88973002,171.88,171.83,219.26468879]
[1748200326386,2.17860904,171.87,171.83,219.26468879]
[1748200327389,34.88973002,171.88,171.83,219.26468879]
[1748200327995,18.64964886,171.88,171.83,219.26468879]
[1748200329385,2.17879808,171.87,171.83,219.26468879]
[1748200329987,2.17879808,171.87,171.84,16.24008116]
[1748200330181,18.64964886,171.89,171.85,16.24008116]
[1748200331393,34.88,171.9,171.85,16.24008116]
[1748200331784,2.17775753,171.89,171.86,16.24008116]
[1748200332583,18.64964886,171.9,171.86,16.24008116]
[1748200333272,18.64964886,171.9,171.87,16.24008116]
[1748200333473,18.64964886,171.91,171.87,81.46468879]
[1748200334684,18.64964886,171.91,171.87,65.22460763]
[1748200337701,18.64964886,171.91,171.87,203.02460763]
[1748200339297,52.16008116,171.92,171.87,203.02460763]
[1748200339499,52.16008116,171.92,171.87,219.26468879]
[1748200347314,16.24008116,171.91,171.87,203.02460763]
[1748200348423,34.88973002,171.9,171.87,203.02460763]
[1748200349104,16.24008116,171.89,171.87,203.02460763]
[1748200349291,34.88973002,171.9,171.87,65.22460763]
[1748200355919,34.88973002,171.88,171.87,65.22460763]
[1748200356423,34.88973002,171.88,171.84,137.8]
[1748200356424,34.88973002,171.88,171.84,65.22460763]
[1748200356623,18.64964886,171.86,171.84,65.22460763]
[1748200361421,34.88,171.87,171.84,65.22460763]
[1748200361422,69.76973002,171.85,171.84,65.22460763]
[1748200376537,18.79181043,171.84,171.79,65.22460763]
[1748200376712,34.88973002,171.81,171.79,65.22460763]
[1748200376916,69.78973002,171.81,171.79,65.22460763]
[1748200380436,53.54964886,171.81,171.79,65.22460763]
[1748200384241,34.9,171.81,171.79,65.22460763]
[1748200384642,34.9,171.83,171.8,16.24008116]
[1748200385143,53.54964886,171.84,171.8,16.24008116]
[1748200385341,53.54964886,171.84,171.79,219.26468879]
[1748200386521,34.9,171.83,171.79,219.26468879]
[1748200387621,34.9,171.84,171.79,219.26468879]
[1748200390354,18.64964886,171.83,171.79,203.02460763]
[1748200390657,34.88973002,171.83,171.79,65.22460763]
[1748200390957,34.9,171.82,171.79,65.22460763]
[1748200392048,51.14008116,171.82,171.79,65.22460763]
[1748200392359,18.64964886,171.8,171.79,65.22460763]
[1748200392533,53.54964886,171.8,171.79,65.22460763]
[1748200392844,69.78973002,171.8,171.76,65.22460763]
[1748200393027,18.64964886,171.78,171.76,65.22460763]
[1748200393231,53.54964886,171.78,171.76,65.22460763]
[1748200393753,34.9,171.78,171.76,65.22460763]
[1748200394242,0.14216157,171.84,171.76,65.22460763]
[1748200394243,34.9,171.79,171.76,81.46468879]
[1748200394449,53.54964886,171.81,171.77,16.24008116]
[1748200396647,53.54964886,171.81,171.77,65.22460763]
[1748200397458,34.9,171.81,171.77,81.46468879]
[1748200400470,18.64964886,171.82,171.77,81.46468879]
[1748200400664,53.54964886,171.82,171.77,81.46468879]
[1748200400964,34.9,171.83,171.79,16.24008116]
[1748200402449,34.9,171.83,171.79,219.26468879]
[1748200405275,16.24008116,171.84,171.79,219.26468879]
[1748200405573,34.9,171.83,171.79,219.26468879]
[1748200406569,34.9,171.83,171.8,16.24008116]
[1748200409276,34.88973002,171.85,171.8,16.24008116]
[1748200409478,34.9,171.84,171.8,16.24008116]
[1748200411287,34.9,171.84,171.8,219.26468879]
[1748200412178,34.88973002,171.85,171.8,219.26468879]
[1748200412372,69.78973002,171.85,171.8,219.26468879]
[1748200415359,53.54964886,171.85,171.8,219.26468879]
[1748200416477,51.14008116,171.85,171.8,219.26468879]
[1748200416680,34.9,171.85,171.81,16.24008116]
[1748200417156,34.9,171.85,171.81,219.26468879]
[1748200418789,35.82,171.86,171.81,219.26468879]
[1748200418962,70.72,171.86,171.82,16.24008116]
[1748200419161,35.82,171.86,171.82,16.24008116]
[1748200419362,70.72,171.86,171.83,16.24008116]
[1748200419572,35.82,171.86,171.83,219.26468879]
[1748200420386,35.82,171.86,171.83,203.02460763]
[1748200420584,52.06008116,171.86,171.83,203.02460763]
[1748200421588,18.64964886,171.85,171.83,203.02460763]
[1748200421800,53.54964886,171.85,171.83,203.02460763]
[1748200422170,69.78973002,171.85,171.83,203.02460763]
[1748200422995,69.78973002,171.85,171.83,65.22460763]
[1748200425290,53.54964886,171.85,171.83,65.22460763]
[1748200433103,69.78973002,171.85,171.83,65.22460763]
[1748200434495,53.54964886,171.85,171.83,65.22460763]
[1748200436597,69.78973002,171.85,171.83,65.22460763]
[1748200443602,34.9,171.85,171.83,65.22460763]
[1748200444291,34.88973002,171.87,171.83,65.22460763]
[1748200444494,34.9,171.86,171.83,65.22460763]
[1748200445894,2.17809334,171.85,171.83,65.22460763]
[1748200446495,34.9,171.86,171.83,65.22460763]
[1748200446809,34.88973002,171.87,171.83,65.22460763]
[1748200447109,34.9,171.86,171.83,65.22460763]
[1748200447306,2.17812806,171.86,171.83,65.22460763]
[1748200447510,37.07812806,171.86,171.83,65.22460763]
[1748200448007,34.9,171.86,171.83,65.22460763]
[1748200448186,51.14008116,171.86,171.83,65.22460763]
[1748200450106,2.17808805,171.85,171.83,65.22460763]
[1748200450992,51.14008116,171.86,171.83,65.22460763]
[1748200452210,2.17820792,171.85,171.83,65.22460763]
[1748200453212,51.14008116,171.86,171.83,65.22460763]
[1748200455015,2.1784453,171.85,171.83,65.22460763]
[1748200456003,51.14008116,171.86,171.83,65.22460763]
[1748200456515,16.24008116,171.85,171.83,65.22460763]
[1748200459314,51.14008116,171.86,171.83,65.22460763]
[1748200459816,34.9,171.86,171.83,65.22460763]
[1748200460315,16.24008116,171.87,171.83,65.22460763]
[1748200460499,51.14008116,171.87,171.83,65.22460763]
[1748200460698,2.17871679,171.86,171.83,65.22460763]
[1748200460918,2.17871679,171.86,171.84,16.24008116]
[1748200461320,2.17871679,171.86,171.85,26.0]
[1748200461626,16.24008116,171.88,171.85,26.0]
[1748200464105,16.24008116,171.89,171.85,26.0]
[1748200464310,16.24008116,171.88,171.85,65.22460763]
[1748200472065,16.24008116,171.89,171.85,65.22460763]
[1748200474351,34.88,171.9,171.85,81.46468879]
[1748200474661,51.12008116,171.9,171.85,219.26468879]
[1748200474954,16.24008116,171.9,171.85,203.02460763]
[1748200477635,16.24008116,171.89,171.85,203.02460763]
[1748200478465,16.24008116,171.9,171.85,203.02460763]
[1748200479462,16.24008116,171.89,171.85,203.02460763]
[1748200484370,53.52964886,171.91,171.85,203.02460763]
[1748200484570,16.24008116,171.9,171.85,203.02460763]
[1748200484765,69.76973002,171.91,171.85,219.26468879]
[1748200488470,34.88973002,171.91,171.85,219.26468879]
[1748200488657,69.76973002,171.91,171.85,219.26468879]
[1748200489070,51.12008116,171.91,171.86,16.24008116]